[Event "76th Montenegro Championship 2024"]
[Site "Podgorica"]
[Date "2024.02.13"]
[Round "9.8"]
[White "Ivanovic, Bozidar"]
[Black "Ratkovic, Milorad"]
[Result "1-0"]
[ECO "B84"]
[WhiteElo "2403"]
[BlackElo "2063"]
[Annotator "RC"]
[PlyCount "203"]
[EventDate "2024.02.06"]
[EventType "swiss"]
[EventCountry "MNE"]
[SourceTitle "playchess.com"]
[Source "ChessBase"]
[SourceQuality "1"]
[TimeControl "40/5400+30:1800+30"]

1. e4 {[%emt 0:03:19]} c5 {[%emt 0:00:06]} 2. Nf3 {[%emt 0:00:29]} d6 {[%emt 0:00:18]} 3. d4 {[%emt 0:00:18]} cxd4 {[%emt 0:00:06]} 4. Nxd4 {[%emt 0:00:10]} Nf6 {[%emt 0:00:07]} 5. Nc3 {[%emt 0:00:16]} a6 {[%emt 0:00:18]} 6. Be2 {[%emt 0:03:38]} e6 {[%emt 0:04:31]} 7. f4 {[%emt 0:02:06]} Qc7 {[%emt 0:04:16]} 8. Be3 {[%emt 0:01:30]} Be7 {[%emt 0:01:01]} 9. O-O {[%emt 0:03:43]} h5 {[%emt 0:04:30]} 10. Kh1 {[%emt 0:00:37]} Nc6 {[%emt 0:06:11]} 11. Bf3 {[%emt 0:05:10]} Na5 {[%emt 0:02:10]} 12. Bg1 {[%emt 0:02:21]} Bd7 {[%emt 0:01:27]} 13. Be2 {[%emt 0:17:36]} b5 {[%emt 0:02:09]} 14. a3 {[%emt 0:04:18]} Rb8 {[%emt 0:03:35]} 15. Qd3 {[%emt 0:09:24]} Rc8 {[%emt 0:03:19]} 16. Rf3 {[%emt 0:04:52]} e5 {[%emt 0:11:02]} 17. fxe5 {[%emt 0:02:39]} dxe5 {[%emt 0:00:43]} 18. Nf5 {[%emt 0:00:16]} Bxf5 {[%emt 0:00:18]} 19. Rxf5 {[%emt 0:00:46]} Rd8 {[%emt 0:06:02]} 20. Qe3 {[%emt 0:06:25]} Nc4 {[%emt 0:02:31]} 21. Bxc4 {[%emt 0:00:12]} bxc4 {[%emt 0:00:08]} 22. Raf1 {[%emt 0:01:07]} Rb8 {[%emt 0:08:03]} 23. Qg3 {[%emt 0:02:46]} Rxb2 {[%emt 0:10:27]} 24. Qxg7 {[%emt 0:09:52]} Rg8 {[%emt 0:00:24]} 25. Qh6 {[%emt 0:00:10]} Rg6 {[%emt 0:03:55]} 26. Qc1 {[%emt 0:01:23]} Rb7 {[%emt 0:01:57]} 27. h3 {[%emt 0:00:18]} Qa5 {[%emt 0:01:12]} 28. Qe3 {[%emt 0:05:25]} Rb2 {[%emt 0:05:08]} 29. Qf3 {[%emt 0:04:38]} Qxa3 {[%emt 0:10:09]} 30. Rxe5 {[%emt 0:01:58]} Kf8 {[%emt 0:06:34]} 31. Rxe7 {[%emt 0:02:37]} Qxe7 {[%emt 0:01:07]} 32. Nd5 {[%emt 0:00:14]} Qxe4 {[%emt 0:00:07]} 33. Bc5+ {[%emt 0:00:53]} Kg7 {[%emt 0:00:18]} 34. Qxe4 {[%emt 0:02:06]} Nxe4 {[%emt 0:00:14]} 35. Bd4+ {[%emt 0:00:14]} Kh6 {[%emt 0:01:01]} 36. Bxb2 {[%emt 0:01:55]} Ng3+ {[%emt 0:00:11]} 37. Kg1 {[%emt 0:00:04]} Nxf1 {[%emt 0:00:13]} 38. Kxf1 {[%emt 0:00:11]} Rd6 {[%emt 0:00:44]} 39. Ne3 {[%emt 0:00:11]} Rc6 {[%emt 0:00:27]} 40. Bc3 {[%emt 0:00:00]} Kg6 {[%emt 0:00:00]} 41. Ke2 {[%emt 0:00:48]} Rc8 {[%emt 0:01:48]} 42. Bb4 {[%emt 0:01:52]} Kf6 {[%emt 0:00:48]} 43. Kf3 {[%emt 0:00:30]} Ke5 {[%emt 0:00:55]} 44. c3 {[%emt 0:02:16]} f5 {[%emt 0:00:46]} 45. g3 {[%emt 0:00:47]} Rc6 {[%emt 0:00:20]} 46. h4 {[%emt 0:00:14]} Rc8 {[%emt 0:00:12]} 47. Ng2 {[%emt 0:00:09]} Rd8 {[%emt 0:02:08]} 48. Ne3 {[%emt 0:01:40]} Rc8 {[%emt 0:00:23]} 49. Ng2 {[%emt 0:06:17]} Rd8 {[%emt 0:01:22]} 50. Ba5 {[%emt 0:03:05]} Rc8 {[%emt 0:03:46]} 51. Ne3 {[%emt 0:04:31]} Rc6 {[%emt 0:01:22]} 52. Nc2 {[%emt 0:00:27]} Rc8 {[%emt 0:01:22]} 53. Nb4 {[%emt 0:02:08]} Kf6 {[%emt 0:07:37]} 54. Bb6 {[%emt 0:03:30]} Kg6 {[%emt 0:02:16]} 55. Nd5 {[%emt 0:03:21]} Rb8 {[%emt 0:00:47]} 56. Ke3 {[%emt 0:00:57]} Kf7 {[%emt 0:03:49]} 57. Kd4 {[%emt 0:00:16]} Rc8 {[%emt 0:00:48]} 58. Nf4 {[%emt 0:01:47]} Rb8 {[%emt 0:04:05]} 59. Kc5 {[%emt 0:02:16]} Rc8+ {[%emt 0:00:38]} 60. Kd5 {[%emt 0:00:34]} Rb8 {[%emt 0:00:46]} 61. Kc5 {[%emt 0:03:34]} Rc8+ {[%emt 0:00:16]} 62. Kb4 {[%emt 0:00:19]} Rc6 {[%emt 0:03:57]} 63. Ka5 {[%emt 0:00:33]} Kf6 {[%emt 0:00:59]} 64. Kxa6 {[%emt 0:00:26]} Ke5 {[%emt 0:00:16]} 65. Kb5 {[%emt 0:00:14]} Rc8 {[%emt 0:00:12]} 66. Nxh5 {[%emt 0:01:11]} Ke4 {[%emt 0:00:21]} 67. Ng7 {[%emt 0:00:42]} f4 {[%emt 0:00:39]} 68. gxf4 {[%emt 0:00:08]} Kxf4 {[%emt 0:00:06]} 69. h5 {[%emt 0:01:05]} Kg5 {[%emt 0:00:10]} 70. Be3+ {[%emt 0:00:10]} Kf6 {[%emt 0:00:07]} 71. Bd4+ {[%emt 0:01:07]} Kg5 {[%emt 0:00:18]} 72. Ne6+ {[%emt 0:01:05]} Kxh5 {[%emt 0:00:16]} 73. Nc5 {[%emt 0:00:03]} Kg6 {[%emt 0:00:19]} 74. Kxc4 {[%emt 0:00:04]} Kf7 {[%emt 0:00:04]} 75. Kb5 {[%emt 0:00:21]} Ke7 {[%emt 0:00:19]} 76. Be5 {[%emt 0:00:07]} Rg8 {[%emt 0:00:09]} 77. Kb6 {[%emt 0:00:48]} Rg4 {[%emt 0:00:24]} 78. Kb5 {[%emt 0:01:34]} Kd8 {[%emt 0:01:43]} 79. c4 {[%emt 0:00:48]} Rg1 {[%emt 0:00:24]} 80. Kc6 {[%emt 0:00:26]} Rc1 {[%emt 0:00:24]} 81. Nb7+ {[%emt 0:00:16]} Ke7 {[%emt 0:00:26]} 82. c5 {[%emt 0:00:12]} Rc2 {[%emt 0:01:26]} 83. Bd6+ {[%emt 0:00:25]} Ke8 {[%emt 0:00:40]} 84. Kc7 {[%emt 0:00:13]} Kf7 {[%emt 0:01:22]} 85. Kd7 {[%emt 0:00:38]} Rxc5 {[%emt 0:00:09]} 86. Nxc5 {[%emt 0:00:10]} Kf6 {[%emt 0:00:03]} 87. Nd3 {[%emt 0:00:18]} Kf5 {[%emt 0:00:16]} 88. Nf2 {[%emt 0:00:08]} Kf6 {[%emt 0:00:06]} 89. Bc7 {[%emt 0:00:12]} Kf5 {[%emt 0:00:09]} 90. Ke7 {[%emt 0:00:07]} Kg5 {[%emt 0:00:58]} 91. Kf7 {[%emt 0:00:15]} Kf5 {[%emt 0:00:10]} 92. Bd6 {[%emt 0:01:22]} Kg5 {[%emt 0:00:13]} 93. Ke6 {[%emt 0:00:02]} Kg6 {[%emt 0:00:23]} 94. Ne4 {[%emt 0:00:06]} Kg7 {[%emt 0:00:12]} 95. Kf5 {[%emt 0:00:17]} Kh6 {[%emt 0:00:46]} 96. Ng3 {[%emt 0:00:35]} Kh7 {[%emt 0:00:08]} 97. Kf6 {[%emt 0:00:32]} Kh6 {[%emt 0:00:29]} 98. Bf4+ {[%emt 0:00:08]} Kh7 {[%emt 0:00:08]} 99. Nh5 {[%emt 0:01:21]} Kg8 {[%emt 0:00:52]} 100. Bh6 {[%emt 0:00:59]} Kh8 {[%emt 0:00:09]} 101. Kf7 {[%emt 0:00:19]} Kh7 {[%emt 0:00:13]} 102. Bf8 {[%emt 0:00:06]} 1-0

[Event "76th Montenegro Championship 2024"]
[Site "Podgorica"]
[Date "2024.02.13"]
[Round "9.9"]
[White "Draganic, Veljko"]
[Black "Tomic, Aleksandar"]
[Result "0-1"]
[ECO "C41"]
[WhiteElo "2323"]
[BlackElo "2398"]
[Annotator "TA"]
[PlyCount "68"]
[EventDate "2024.02.06"]
[EventType "swiss"]
[EventCountry "MNE"]
[SourceTitle "playchess.com"]
[Source "ChessBase"]
[SourceQuality "1"]
[TimeControl "40/5400+30:1800+30"]

{[%evp 17,68,37,46,24,27,27,27,27,45,28,30,45,52,-12,-14,-14,-10,-12,0,0,0,-13,-16,-14,-17,-64,-64,-58,-60,-73,-59,-75,-24,-45,-41,-64,-65,-72,-58,-144,-138,-291,-291,-291,-291,-270,-270,-802,-521,-29992,-29993,-29995,-29996]} 1. e4 {[%emt 0:02:24]} d6 {[%emt 0:11:23]} 2. d4 {[%emt 0:00:06]} Nf6 {[%emt 0:00:05]} 3. Nc3 {[%emt 0:00:06]} e5 {[%emt 0:00:07]} 4. Nf3 {[%emt 0:00:05]} Nbd7 {[%emt 0:00:11]} 5. Bc4 {[%emt 0:00:10]} Be7 {[%emt 0:00:07]} 6. O-O {[%emt 0:00:19]} O-O {[%emt 0:00:11]} 7. Re1 {[%emt 0:00:22]} c6 {[%emt 0:01:00]} 8. a4 {[%emt 0:00:03]} h6 {[%emt 0:00:27]} 9. h3 {[%emt 0:00:06]} Re8 {[%emt 0:01:48]} 10. Ba2 {[%emt 0:00:55]} exd4 {[%emt 0:03:16]} 11. Nxd4 {[%emt 0:04:21]} Bf8 {[%emt 0:00:34]} 12. Bf4 {[%emt 0:08:15] White has an edge.} Nc5 {[%emt 0:01:19]} 13. Qf3 {[%emt 0:02:22]} Be6 {[%emt 0:00:06]} 14. Nxe6 {[%emt 0:06:21]} Nxe6 {[%emt 0:02:47]} 15. Rad1 {[%emt 0:00:39]} (15. Be3 $14) 15... Nxf4 $11 {[%emt 0:03:21]} 16. Qxf4 {[%emt 0:00:04]} Qa5 {[%emt 0:00:50]} 17. Bb3 {[%emt 0:06:04]} Qb4 {[%emt 0:05:27]} 18. Qf3 {[%emt 0:05:34]} Re5 {[%emt 0:02:29]} 19. Re3 {[%emt 0:00:49]} Rae8 {[%emt 0:04:51]} 20. Rde1 {[%emt 0:17:25]} Be7 {[%emt 0:03:09]} 21. Rd1 {[%emt 0:07:02]} (21. Na2 $11 {was preferrable.} Qa5 22. Nc1) 21... Bd8 $1 $15 {[%emt 0:14:19][%cal Od6d5]} 22. Red3 {[%emt 0:04:23]} Bc7 $1 {[%emt 0:04:54][%cal Od6d5] [#] White must now prevent ...d5!} 23. g3 {[%emt 0:00:43]} Qc5 {[%emt 0:05:50] Black is more active.} 24. Kg2 {[%emt 0:04:38]} Rd8 {[%emt 0:05:40]} ({Black should play} 24... h5 $17) 25. Rd4 {[%emt 0:07:50]} Re7 {[%emt 0:07:28]} 26. Qf4 {[%emt 0:10:52]} Rde8 {[%emt 0:08:28]} 27. Qf3 {[%emt 0:02:31]} Qe5 {[%emt 0:02:41]} 28. R1d2 {[%emt 0:02:07]} (28. R1d3 $15) 28... Ba5 $17 {[%emt 0:01:33]} 29. Rxd6 $2 {[%emt 0:05:28] [#] This costs White the game.} (29. Rd1 $17 {is a better defense.}) 29... Bxc3 $1 $19 {[%emt 0:00:41]} ({Stronger than} 29... Nxe4 30. Qxe4 Bxc3 31. Qxe5 Bxe5 32. Rd8 $11) 30. bxc3 {[%emt 0:00:10]} Nxe4 {[%emt 0:00:54]} 31. Rd7 {[%emt 0:02:15]} Nxd2 {[%emt 0:00:24]} 32. Bxf7+ $2 {[%emt 0:00:06]} (32. Rxd2 Qe4 33. Qxe4 Rxe4 34. Rd7) 32... Kh8 {[%emt 0:00:18]} 33. Qd3 {[%emt 0:01:08][%cal Of7e8]} Rxd7 {[%emt 0:00:38]} 34. Qxd7 {[%emt 0:00:07]} Qe4+ {[%emt 0:00:16] Weighted Error Value: White=0.52/Black=0.17 (very precise) .  Mistake:       	White=5     	Black=1      Inaccurate:     	White=1     	Black=1      OK:         	White=7     	Black=5      Best:        	---       	Black=3      Strong:       	---       	Black=3} 0-1

[Event "76th Montenegro Championship 2024"]
[Site "Podgorica"]
[Date "2024.02.13"]
[Round "9.10"]
[White "Djurovic, Peko"]
[Black "Miletic, Vuk"]
[Result "1-0"]
[ECO "B32"]
[WhiteElo "2332"]
[BlackElo "2213"]
[Annotator "TA"]
[PlyCount "99"]
[EventDate "2024.02.06"]
[EventType "swiss"]
[EventCountry "MNE"]
[SourceTitle "playchess.com"]
[Source "ChessBase"]
[SourceQuality "1"]
[TimeControl "40/5400+30:1800+30"]

{[%evp 14,99,28,24,32,29,28,27,33,28,40,28,21,23,17,17,43,46,27,42,47,29,70,0,0,0,0,0,0,0,0,0,0,0,0,-344,8,0,24,25,40,0,0,0,0,0,0,0,0,0,0,0,0,0,0,0,1,1,13,0,0,0,35,41,82,0,104,114,185,179,520,495,460,438,544,537,448,448,6107,5218,29976,29976,29975,29977,29976,29977,29972,29964]} 1. e4 {[%emt 0:00:03]} c5 {[%emt 0:01:43]} 2. Nf3 {[%emt 0:00:19][%cal Bg1f3,Bf3d4,Bd4b5,Bb5a3,Ba3c2][%mdl 32]} Nc6 {[%emt 0:00:16]} 3. d4 {[%emt 0:00:35]} cxd4 {[%emt 0:00:12]} 4. Nxd4 {[%emt 0:00:02]} e5 {[%emt 0:00:07]} 5. Nb5 {[%emt 0:00:13]} d6 {[%emt 0:00:05]} 6. c4 {[%emt 0:01:37]} Be6 {[%emt 0:00:37]} 7. N1c3 {[%emt 0:01:52]} a6 {[%emt 0:00:10]} 8. Na3 {[%emt 0:00:04]} g6 {[%emt 0:04:14]} 9. Be3 {[%emt 0:07:52]} Nf6 {[%emt 0:03:25][%cal Bg8f6,Bf6h5,Bh5f4][%mdl 32]} 10. Be2 {[%emt 0:03:35] Repels Ng4} Bg7 {[%emt 0:00:05] White has an edge.} 11. O-O {[%emt 0:00:29]} O-O {[%emt 0:00:39][%cal Oc6d4]} 12. Nc2 {[%emt 0:05:34]} Rc8 {[%emt 0:00:51]} 13. f3 {[%emt 0:08:19]} Nh5 {[%emt 0:26:27]} 14. Qd2 {[%emt 0:20:15]} Nd4 {[%emt 0:27:07]} 15. Nxd4 {[%emt 0:07:57]} exd4 {[%emt 0:00:21]} 16. Bxd4 {[%emt 0:00:07]} Nf4 {[%emt 0:05:18]} 17. Rfd1 {[%emt 0:15:45]} (17. Bxg7 Qg5 18. Kf2 (18. Bxf8 $2 Qxg2#) 18... Kxg7 19. Qd4+ Qe5 $17) (17. Rf2 {simplifies} Bxd4 18. Qxd4 Nxe2+ 19. Rxe2 Rxc4 20. Qf2) 17... Qg5 {[%emt 0:10:50][%csl Gf4][%cal Rg5g2]} 18. g3 {[%emt 0:01:24]} ({White should play} 18. Bf1 $14 Bxd4+ 19. Qxd4 Bxc4 20. g3) 18... Bxd4+ $11 {[%emt 0:02:17]} 19. Qxd4 {[%emt 0:04:52] Hoping for Bf1.} Nxe2+ {[%emt 0:00:21]} 20. Nxe2 {[%emt 0:00:02]} Rxc4 {[%emt 0:00:13]} 21. Qd2 {[%emt 0:01:04]} Qc5+ {[%emt 0:08:34]} 22. Nd4 {[%emt 0:03:05]} Rc8 {[%emt 0:02:42]} 23. Kg2 {[%emt 0:03:46]} Qh5 {[%emt 0:03:44]} 24. b3 $2 {[%emt 0:08:40][%mdl 8192]} ({Avoid the trap} 24. Nxe6 $2 Rc2 25. Nd4 Rxd2+ 26. Rxd2 Qa5 $19) (24. h4 $11 {and White stays safe.}) 24... R4c5 $2 {[%emt 0:00:39]} (24... Rxd4 $1 $19 25. Qxd4 Rc2+ 26. Rd2 Qe5 27. Qxd6 Qxd6 28. Rxc2 g5) 25. Rac1 {[%emt 0:01:45]} ({Don't blunder} 25. Nxe6 $2 Rc2 26. Nd4 Rxd2+ 27. Rxd2 d5 28. exd5 Qxd5 $19) 25... d5 {[%emt 0:01:00]} 26. Nxe6 {[%emt 0:01:55]} (26. Rxc5 {feels hotter.} Rxc5 27. Nxe6 fxe6 28. Rc1) 26... fxe6 {[%emt 0:00:08]} 27. exd5 {[%emt 0:02:16] Strongly threatening Rxc5.} Rxc1 {[%emt 0:00:17]} 28. Rxc1 {[%emt 0:00:09]} Rxc1 {[%emt 0:00:01]} 29. Qxc1 {[%emt 0:00:44]} Qxd5 {[%emt 0:00:02][%mdl 4096] Endgame. KQ-KQ} 30. Qc8+ {[%emt 0:00:07]} Kg7 {[%emt 0:00:08]} 31. Qc7+ {[%emt 0:00:03]} Kg8 {[%emt 0:00:15]} 32. h4 {[%emt 0:00:40]} Qd2+ {[%emt 0:01:24]} 33. Kh3 {[%emt 0:00:18] Black must now prevent Qb8+.} Qd5 {[%emt 0:00:03]} 34. Qc8+ {[%emt 0:01:10]} Kg7 {[%emt 0:00:23]} 35. Qc3+ {[%emt 0:00:14]} Kg8 {[%emt 0:01:35]} 36. g4 {[%emt 0:00:23]} Kf7 {[%emt 0:01:19]} 37. Qc7+ {[%emt 0:00:07]} Kg8 {[%emt 0:00:06]} 38. Kg3 {[%emt 0:00:04]} e5 {[%emt 0:01:07] [#]} 39. Qe7 {[%emt 0:00:40]} (39. g5 $1 $16) 39... Qb5 {[%emt 0:00:39]} (39... b5 $11) 40. h5 $16 {[%emt 0:00:00] White is more active.} gxh5 {[%emt 0:00:00]} (40... Qe2 $16) 41. gxh5 $18 {[%emt 0:01:46] h6 would kill now.} Qe2 $2 {[%emt 0:21:11]} (41... Qc6 42. Qxe5 b5) 42. Qe6+ {[%emt 0:09:02]} Kf8 {[%emt 0:01:16] [#]} 43. Qf6+ $1 {[%emt 0:01:30]} Ke8 {[%emt 0:05:40][%cal Oe8d7]} 44. Qh8+ {[%emt 0:00:07]} Kd7 {[%emt 0:00:16]} 45. Qxh7+ {[%emt 0:00:05]} Kc8 {[%emt 0:00:25]} (45... Ke6 $142 46. Qg6+ (46. Qxb7 Qe1+ 47. Kg2 Qe2+ 48. Kh3 Qf1+ 49. Kh4 Qf2+ 50. Kg5 Qg3+ 51. Kh6 Qf4+ 52. Kh7 Qf5+ 53. Kh8 Qxh5+ 54. Kg7 Qg5+ 55. Kh7 Qh5+ 56. Kg8 Qg6+ 57. Qg7 Qe8+ 58. Kh7 Qh5+ 59. Qh6+ Qxh6+ 60. Kxh6 Kf5 $11) 46... Ke7) 46. Qf5+ {[%emt 0:01:03]} Kd8 {[%emt 0:01:13]} 47. h6 {[%emt 0:02:29] White mates.} Qe1+ {[%emt 0:01:21]} 48. Kg4 {[%emt 0:00:23]} Qg1+ {[%emt 0:00:19]} 49. Kh5 {[%emt 0:00:36]} Qh2+ {[%emt 0:00:34]} 50. Kg6 {[%emt 0:00:08] Weighted Error Value: White=0.25 (precise) /Black=0.49.  Loses game:     	White=1     	---        Missed win:     	---       	Black=1      Mistake:       	White=2     	Black=4      Inaccurate:     	White=1     	Black=5      OK:         	White=9     	Black=18     Best:        	White=5     	Black=1      Strong:       	White=1     	---} 1-0

[Event "76th Montenegro Championship 2024"]
[Site "Podgorica"]
[Date "2024.02.13"]
[Round "9.11"]
[White "Vujovic, Savo"]
[Black "Pobor, Milo"]
[Result "1/2-1/2"]
[ECO "A36"]
[WhiteElo "2137"]
[BlackElo "2201"]
[Annotator "TA"]
[PlyCount "20"]
[EventDate "2024.02.06"]
[EventType "swiss"]
[EventCountry "MNE"]
[SourceTitle "playchess.com"]
[Source "ChessBase"]
[SourceQuality "1"]
[TimeControl "40/5400+30:1800+30"]

{[%evp 14,20,5,-8,0,-8,15,12,21]} 1. c4 {[%emt 0:00:01]} c5 {[%emt 0:00:13]} 2. Nc3 {[%emt 0:00:08]} Nc6 {[%emt 0:00:15]} 3. g3 {[%emt 0:00:04]} g6 {[%emt 0:00:04]} 4. Bg2 {[%emt 0:00:17]} Bg7 {[%emt 0:00:06]} 5. e3 {[%emt 0:00:05]} e5 {[%emt 0:00:15]} 6. Nge2 {[%emt 0:00:10]} Nge7 {[%emt 0:00:03]} 7. O-O {[%emt 0:00:22]} O-O {[%emt 0:00:51]} 8. Nd5 {[%emt 0:00:13] The position is equal.} d6 {[%emt 0:00:09]} 9. Nec3 {[%emt 0:00:15]} Be6 {[%emt 0:00:21]} 10. d3 {[%emt 0:00:13]} Qd7 {[%emt 0:02:58] An uneventful encounter.   Weighted Error Value: White=0.08 (flawless) /Black=0.16 (very precise)} 1/2-1/2

[Event "76th Montenegro Championship 2024"]
[Site "Podgorica"]
[Date "2024.02.13"]
[Round "9.12"]
[White "Zherebtsova, Alexandra"]
[Black "Koljevic, Nikolina"]
[Result "1-0"]
[ECO "E00"]
[WhiteElo "2270"]
[BlackElo "1974"]
[Annotator "TA"]
[PlyCount "55"]
[EventDate "2024.02.06"]
[EventType "swiss"]
[EventCountry "MNE"]
[SourceTitle "playchess.com"]
[Source "ChessBase"]
[SourceQuality "1"]
[TimeControl "40/5400+30:1800+30"]

{[%evp 9,55,8,33,20,0,0,39,22,50,37,85,95,121,113,111,116,113,101,122,120,204,206,196,175,168,152,144,175,173,147,148,156,181,150,173,39,216,162,164,163,922,868,29993,29990,29994,657,29995,29993]} 1. d4 {[%emt 0:10:15]} Nf6 {[%emt 0:00:06]} 2. c4 {[%emt 0:00:02]} e6 {[%emt 0:00:11]} 3. g3 {[%emt 0:00:02]} Bb4+ {[%emt 0:00:55]} 4. Nd2 {[%emt 0:00:05]} O-O {[%emt 0:01:31]} 5. Bg2 {[%emt 0:02:39]} d6 {[%emt 0:03:25]} 6. a3 {[%emt 0:03:18]} Bxd2+ {[%emt 0:00:44]} 7. Qxd2 {[%emt 0:01:39]} d5 {[%emt 0:08:57]} 8. Nf3 {[%emt 0:03:24] White is slightly better.} b6 {[%emt 0:03:49]} 9. cxd5 {[%emt 0:10:22]} Nxd5 {[%emt 0:02:03]} (9... exd5 $14 10. Qc2 Nbd7) 10. Qc2 $16 {[%emt 0:04:23]} Bb7 {[%emt 0:03:07]} 11. Ng5 {[%emt 0:03:57][%csl Gg5][%cal Rc2h7]} g6 {[%emt 0:01:21][%cal Od5b4] [#]} 12. O-O $1 {[%emt 0:05:14]} Nd7 {[%emt 0:01:48]} 13. Rd1 {[%emt 0:03:43]} a5 {[%emt 0:06:00]} 14. h4 {[%emt 0:05:13]} N7f6 {[%emt 0:03:31]} (14... Qc8 $16 {is a better defense.} 15. e4 N5f6) 15. e4 $18 {[%emt 0:06:42][%cal Be2e4,Be4e5][%mdl 32]} Ne7 {[%emt 0:00:21]} 16. e5 {[%emt 0:04:56] Black is weak on the dark squares} Nfd5 {[%emt 0:00:25]} 17. Ne4 {[%emt 0:00:17]} Kg7 {[%emt 0:06:46] Inhibits Bh6+.} 18. Bg5 {[%emt 0:07:55] Strongly threatening Qc1.} h6 {[%emt 0:00:42]} 19. Bf6+ {[%emt 0:00:03] A strong pair of Bishops.} Kh7 {[%emt 0:00:59] [#]} 20. h5 $1 $36 {[%emt 0:03:25][%mdl 2560] White is on the roll. White is much more active.} Qd7 {[%emt 0:05:14]} (20... Ra7 21. Rd3) 21. g4 {[%emt 0:06:14][%cal Bg3g4,Bg4g5,Bg5f6][%mdl 32]} Rab8 {[%emt 0:02:22] [#]} 22. Qd2 {[%emt 0:03:10]} (22. Rac1 $1 $18) 22... Ng8 $2 {[%emt 0:01:26] This costs Black the game.} (22... Rg8 $1 $14) 23. g5 {[%emt 0:01:41]} Ngxf6 {[%emt 0:05:50]} 24. hxg6+ {[%emt 0:01:24]} ({Much weaker is} 24. gxf6 $6 g5 $11) ({Resist} 24. exf6 $6 Rg8 $14) 24... Kxg6 $2 {[%emt 0:04:16]} (24... fxg6 25. gxf6 (25. Nxf6+ Nxf6 26. gxf6 Rfd8 $16) (25. exf6 Kg8 $18) 25... g5 26. Nxg5+ Kg8) 25. gxf6 {[%emt 0:00:49] Qd3 would now be deadly.} Kh7 {[%emt 0:00:33] [#]} 26. Ng5+ $1 {[%emt 0:05:37][%mdl 512]} Kg6 {[%emt 0:01:03]} (26... Kg8 27. Ne4) 27. Be4+ {[%emt 0:01:58]} Kh5 {[%emt 0:00:40]} 28. Kg2 {[%emt 0:02:05] Weighted Error Value: White=0.15 (very precise) /Black=0.53.  Loses game:     	---       	Black=1      Mistake:       	White=1     	Black=3      Inaccurate:     	---       	Black=3      OK:         	White=10    	Black=6      Best:        	White=1     	Black=4      Strong:       	White=1     	---} 1-0

[Event "76th Montenegro Championship 2024"]
[Site "Podgorica"]
[Date "2024.02.13"]
[Round "9.13"]
[White "Sukovic, Andrej"]
[Black "Musovic, Armin"]
[Result "1-0"]
[ECO "A34"]
[WhiteElo "2339"]
[BlackElo "2268"]
[Annotator "TA"]
[PlyCount "71"]
[EventDate "2024.02.06"]
[EventType "swiss"]
[EventCountry "MNE"]
[SourceTitle "playchess.com"]
[Source "ChessBase"]
[SourceQuality "1"]
[TimeControl "40/5400+30:1800+30"]

{[%evp 9,71,9,7,10,30,18,31,29,26,23,30,21,20,21,52,32,30,32,27,35,30,28,24,28,35,0,0,0,0,0,4,18,73,76,87,36,20,31,166,81,134,108,125,133,133,139,133,128,897,764,917,857,29981,29981,29975,5806,29988,29989,29988,29989,29993,29994,29994,29995]} 1. c4 {[%emt 0:02:37]} c5 {[%emt 0:00:06]} 2. g3 {[%emt 0:00:11]} g6 {[%emt 0:00:03]} 3. Bg2 {[%emt 0:00:06]} Bg7 {[%emt 0:00:04]} 4. Nc3 {[%emt 0:00:06]} Nf6 {[%emt 0:01:12]} 5. e4 {[%emt 0:00:24]} d6 {[%emt 0:00:20]} 6. Nge2 {[%emt 0:00:06]} h5 {[%emt 0:00:30]} 7. h3 {[%emt 0:02:31]} Nc6 {[%emt 0:01:51]} 8. d3 {[%emt 0:01:32] White is slightly better.} Bd7 {[%emt 0:04:45]} 9. Be3 {[%emt 0:08:31]} Rb8 {[%emt 0:02:40]} 10. Rb1 {[%emt 0:22:29]} a6 {[%emt 0:11:20]} 11. a3 {[%emt 0:00:09]} Qa5 {[%emt 0:06:15]} 12. Bd2 {[%emt 0:14:00]} Qc7 {[%emt 0:03:35]} 13. b4 {[%emt 0:02:52]} b6 {[%emt 0:01:28]} 14. f4 {[%emt 0:02:29]} Kf8 {[%emt 0:08:58]} 15. Be3 {[%emt 0:02:24]} Kg8 {[%emt 0:01:49]} 16. Qd2 {[%emt 0:02:01]} Qc8 {[%emt 0:03:29]} 17. bxc5 {[%emt 0:07:36]} bxc5 {[%emt 0:05:04]} 18. Rxb8 {[%emt 0:00:10]} Qxb8 {[%emt 0:01:10]} 19. O-O {[%emt 0:01:53][%cal Oe4e5,Be1g1,Bg1h2,Bh2h1][%mdl 32]} Qc8 {[%emt 0:00:18]} 20. Kh2 {[%emt 0:01:43]} h4 {[%emt 0:14:28]} (20... Qd8 $11) 21. g4 $16 {[%emt 0:00:07]} Nd4 {[%emt 0:00:27][%cal Od7g4]} 22. e5 {[%emt 0:10:22]} (22. f5 $16) 22... dxe5 $14 {[%emt 0:03:40]} 23. fxe5 {[%emt 0:00:06]} Nh7 {[%emt 0:00:58]} ({Better is} 23... Nxe2 $14 24. Nxe2 Nxg4+ 25. hxg4 Bxg4) 24. Bf4 {[%emt 0:00:16]} (24. Bxd4 $18 {is more deadly.} cxd4 25. Qf4) 24... Ne6 {[%emt 0:01:38]} (24... Nc6 $142) 25. Kh1 $16 {[%emt 0:00:51]} Nxf4 {[%emt 0:11:23]} 26. Qxf4 {[%emt 0:00:17]} Be8 {[%emt 0:00:22]} 27. Nd5 {[%emt 0:00:48] Wards off Qc7} Qd8 {[%emt 0:03:21]} 28. e6 $40 {[%emt 0:02:22][%mdl 128] White is out for blood. White is much more active. The black rooks are passive.} fxe6 {[%emt 0:03:37][%mdl 8192] [#]} (28... Bf6 $16) 29. Qb8 $3 $18 {[%emt 0:00:06][%mdl 512]} Qd7 {[%emt 0:01:19]} 30. Nb6 {[%emt 0:00:15] A dynamic duo of knights.} Qxd3 {[%emt 0:00:52]} 31. Qxe8+ {[%emt 0:00:10]} Nf8 {[%emt 0:00:04]} 32. Nf4 {[%emt 0:00:27]} Qc2 {[%emt 0:00:14]} 33. Nxe6 {[%emt 0:00:32] White mates.} Kh7 {[%emt 0:00:29]} 34. Nxg7 {[%emt 0:00:10]} Ne6 {[%emt 0:00:20]} 35. Qxe7 {[%emt 0:00:31]} Nxg7 {[%emt 0:00:06]} 36. Qxh4+ {[%emt 0:00:40] Weighted Error Value: White=0.09 (flawless) /Black=0.51.  Loses game:     	---       	Black=1      Mistake:       	White=2     	Black=3      Inaccurate:     	White=1     	Black=1      OK:         	White=10    	Black=7      Best:        	White=2     	Black=2      Brilliant:      	White=1     	---} 1-0